[Event "Titled Tuesday Blitz March 22 Early 2022"]
[White "Aldokhin, Ivan"]
[Black "Aravindh, Chithambaram VR."]
[WhiteFideId "24115720"]
[BlackFideId "5072786"]
[WhiteElo "2231"]
[BlackElo "2561"]
[Result "1/2-1/2"]
[Round "02"]
[TimeControl "180+1"]
[Date "2022.03.22"]
[WhiteClock "0:00:04"]
[BlackClock "0:00:08"]

1. e4 {[%clk 0:02:56]}  g6 {[%clk 0:03:00]} 2. d4 {[%clk 0:02:56]}  Bg7 {[%clk 0:03:00]} 3. Nc3 {[%clk 0:02:56]}  d6 {[%clk 0:03:00]} 4. Bg5 {[%clk 0:02:56]}  a6 {[%clk 0:02:58]} 5. Qd2 {[%clk 0:02:54]}  b5 {[%clk 0:02:58]} 6. Nf3 {[%clk 0:02:39]}  Bb7 {[%clk 0:02:57]} 7. Bd3 {[%clk 0:02:39]}  Nd7 {[%clk 0:02:55]} 8. O-O {[%clk 0:02:38]}  h6 {[%clk 0:02:54]} 9. Be3 {[%clk 0:02:29]}  e6 {[%clk 0:02:42]} 10. a4 {[%clk 0:02:25]}  b4 {[%clk 0:02:39]} 11. Ne2 {[%clk 0:02:26]}  Ngf6 {[%clk 0:02:35]} 12. Ng3 {[%clk 0:02:25]}  c5 {[%clk 0:02:33]} 13. c3 {[%clk 0:01:50]}  a5 {[%clk 0:02:33]} 14. cxb4 {[%clk 0:01:48]}  cxb4 {[%clk 0:02:28]} 15. Bf4 {[%clk 0:01:43]}  Qe7 {[%clk 0:02:21]} 16. Rac1 {[%clk 0:01:38]}  g5 {[%clk 0:02:05]} 17. Be3 {[%clk 0:01:35]}  Qd8 {[%clk 0:02:05]} 18. d5 {[%clk 0:01:29]}  O-O {[%clk 0:01:58]} 19. dxe6 {[%clk 0:01:24]}  fxe6 {[%clk 0:01:59]} 20. Nd4 {[%clk 0:01:22]}  Re8 {[%clk 0:01:56]} 21. Bc4 {[%clk 0:01:08]}  Nc5 {[%clk 0:01:48]} 22. f3 {[%clk 0:00:59]}  Rc8 {[%clk 0:01:31]} 23. Ba2 {[%clk 0:00:57]}  d5 {[%clk 0:01:09]} 24. Rxc5 {[%clk 0:00:48]}  Rxc5 {[%clk 0:01:10]} 25. Nxe6 {[%clk 0:00:46]}  Rxe6 {[%clk 0:01:10]} 26. Bxc5 {[%clk 0:00:46]}  Kh8 {[%clk 0:00:58]} 27. Bd4 {[%clk 0:00:39]}  Ne8 {[%clk 0:00:48]} 28. Nf5 {[%clk 0:00:33]}  Bxd4+ {[%clk 0:00:31]} 29. Nxd4 {[%clk 0:00:25]}  Rg6 {[%clk 0:00:19]} 30. exd5 {[%clk 0:00:19]}  Nd6 {[%clk 0:00:15]} 31. Ne6 {[%clk 0:00:17]}  Qb6+ {[%clk 0:00:15]} 32. Kh1 {[%clk 0:00:16]}  Rf6 {[%clk 0:00:14]} 33. Rd1 {[%clk 0:00:09]}  b3 {[%clk 0:00:14]} 34. Bb1 {[%clk 0:00:09]}  Qb4 {[%clk 0:00:13]} 35. Qd3 {[%clk 0:00:06]}  Rf5 {[%clk 0:00:04]} 36. Qe3 {[%clk 0:00:06]}  Bxd5 {[%clk 0:00:03]} 37. Bxf5 {[%clk 0:00:05]}  Nxf5 {[%clk 0:00:03]} 38. Qe5+ {[%clk 0:00:05]}  Kg8 {[%clk 0:00:03]} 39. Qxd5 {[%clk 0:00:05]}  Ne3 {[%clk 0:00:03]} 40. Qd8+ {[%clk 0:00:04]}  Kf7 {[%clk 0:00:04]} 41. Qd7+ {[%clk 0:00:03]}  Kf6 {[%clk 0:00:03]} 42. Rg1 {[%clk 0:00:03]}  Nf5 {[%clk 0:00:02]} 43. Nf8 {[%clk 0:00:03]}  Qxf8 {[%clk 0:00:02]} 44. Qc6+ {[%clk 0:00:03]}  Kg7 {[%clk 0:00:03]} 45. Qe4 {[%clk 0:00:03]}  Qf6 {[%clk 0:00:03]} 46. Qe2 {[%clk 0:00:02]}  Qf7 {[%clk 0:00:03]} 47. Qf2 {[%clk 0:00:03]}  h5 {[%clk 0:00:02]} 48. Rd1 {[%clk 0:00:03]}  h4 {[%clk 0:00:02]} 49. g4 {[%clk 0:00:02]}  hxg3 {[%clk 0:00:02]} 50. hxg3 {[%clk 0:00:03]}  Qf6 {[%clk 0:00:02]} 51. Kg2 {[%clk 0:00:03]}  Qc6 {[%clk 0:00:02]} 52. Rd3 {[%clk 0:00:04]}  g4 {[%clk 0:00:02]} 53. Rc3 {[%clk 0:00:04]}  Qd5 {[%clk 0:00:02]} 54. Qe2 {[%clk 0:00:04]}  Nd4 {[%clk 0:00:01]} 55. Qe7+ {[%clk 0:00:04]}  Kg6 {[%clk 0:00:01]} 56. Qe8+ {[%clk 0:00:04]}  Kf6 {[%clk 0:00:02]} 57. Qf8+ {[%clk 0:00:03]}  Kg6 {[%clk 0:00:03]} 58. Qf4 {[%clk 0:00:02]}  gxf3+ {[%clk 0:00:03]} 59. Kf2 {[%clk 0:00:02]}  Qe6 {[%clk 0:00:03]} 60. Re3 {[%clk 0:00:03]}  Qc4 {[%clk 0:00:03]} 61. Qg4+ {[%clk 0:00:03]}  Kf6 {[%clk 0:00:03]} 62. Qf4+ {[%clk 0:00:04]}  Kg6 {[%clk 0:00:04]} 63. Qe4+ {[%clk 0:00:04]}  Kg5 {[%clk 0:00:03]} 64. Qe5+ {[%clk 0:00:03]}  Nf5 {[%clk 0:00:03]} 65. Qf4+ {[%clk 0:00:03]}  Qxf4 {[%clk 0:00:03]} 66. gxf4+ {[%clk 0:00:04]}  Kxf4 {[%clk 0:00:03]} 67. Rxf3+ {[%clk 0:00:05]}  Ke4 {[%clk 0:00:04]} 68. Rxb3 {[%clk 0:00:05]}  Nd6 {[%clk 0:00:04]} 69. Rb6 {[%clk 0:00:06]}  Nc4 {[%clk 0:00:04]} 70. Rb5 {[%clk 0:00:05]}  Kd4 {[%clk 0:00:04]} 71. b3 {[%clk 0:00:06]}  Nd2 {[%clk 0:00:05]} 72. Ke2 {[%clk 0:00:05]}  Kc3 {[%clk 0:00:03]} 73. Rc5+ {[%clk 0:00:05]}  Kb4 {[%clk 0:00:04]} 74. Rb5+ {[%clk 0:00:04]}  Kc3 {[%clk 0:00:04]} 75. Rxa5 {[%clk 0:00:03]}  Nxb3 {[%clk 0:00:05]} 76. Ra8 {[%clk 0:00:03]}  Kb4 {[%clk 0:00:05]} 77. Kd3 {[%clk 0:00:03]}  Nc5+ {[%clk 0:00:05]} 78. Kd4 {[%clk 0:00:04]}  Nxa4 {[%clk 0:00:05]} 79. Rb8+ {[%clk 0:00:04]}  Ka5 {[%clk 0:00:06]} 80. Kc4 {[%clk 0:00:04]}  Nb6+ {[%clk 0:00:06]} 81. Kc5 {[%clk 0:00:04]}  Nd7+ {[%clk 0:00:07]} 82. Kc6 {[%clk 0:00:04]}  Nxb8+ {[%clk 0:00:08]} 1/2-1/2


[Site "https://www.chess.com"]

[Event "Titled Tuesday Blitz March 22 Early 2022"]
[White "Al-Tarboush, Ward"]
[Black "Terry, Renato"]
[WhiteFideId "7601450"]
[BlackFideId "3803457"]
[WhiteElo "2276"]
[BlackElo "2577"]
[Result "0-1"]
[Round "02"]
[TimeControl "180+1"]
[Date "2022.03.22"]
[WhiteClock "0:00:02"]
[BlackClock "0:01:02"]

1. e4 {[%clk 0:03:00]}  e6 {[%clk 0:03:00]} 2. d4 {[%clk 0:03:00]}  d5 {[%clk 0:03:00]} 3. exd5 {[%clk 0:03:01]}  exd5 {[%clk 0:03:00]} 4. Bd3 {[%clk 0:03:02]}  Nc6 {[%clk 0:03:00]} 5. Nf3 {[%clk 0:02:58]}  Bd6 {[%clk 0:03:00]} 6. O-O {[%clk 0:02:57]}  Bg4 {[%clk 0:03:00]} 7. c3 {[%clk 0:02:56]}  Nge7 {[%clk 0:03:00]} 8. Re1 {[%clk 0:02:57]}  Qd7 {[%clk 0:03:00]} 9. Nbd2 {[%clk 0:02:57]}  O-O {[%clk 0:02:59]} 10. Nf1 {[%clk 0:02:52]}  Bf5 {[%clk 0:02:56]} 11. Ng3 {[%clk 0:02:50]}  Bxd3 {[%clk 0:02:56]} 12. Qxd3 {[%clk 0:02:51]}  Rfe8 {[%clk 0:02:54]} 13. Bd2 {[%clk 0:02:48]}  f6 {[%clk 0:02:50]} 14. Re2 {[%clk 0:02:47]}  Bxg3 {[%clk 0:02:38]} 15. hxg3 {[%clk 0:02:45]}  Nf5 {[%clk 0:02:39]} 16. Rae1 {[%clk 0:02:44]}  Rxe2 {[%clk 0:02:39]} 17. Qxe2 {[%clk 0:02:45]}  Nd6 {[%clk 0:02:39]} 18. Bf4 {[%clk 0:02:42]}  Re8 {[%clk 0:02:22]} 19. Qd1 {[%clk 0:02:41]}  Ne4 {[%clk 0:02:20]} 20. Qb3 {[%clk 0:02:32]}  Na5 {[%clk 0:02:14]} 21. Qc2 {[%clk 0:02:31]}  g5 {[%clk 0:02:09]} 22. Be3 {[%clk 0:02:28]}  Nc4 {[%clk 0:01:57]} 23. b3 {[%clk 0:02:27]}  Ncd6 {[%clk 0:01:56]} 24. Qd3 {[%clk 0:02:19]}  Qf5 {[%clk 0:01:54]} 25. Rd1 {[%clk 0:01:46]}  Qe6 {[%clk 0:01:47]} 26. Bc1 {[%clk 0:01:27]}  c6 {[%clk 0:01:42]} 27. Ba3 {[%clk 0:01:24]}  Nb5 {[%clk 0:01:34]} 28. Bb2 {[%clk 0:01:24]}  Kg7 {[%clk 0:01:25]} 29. a4 {[%clk 0:01:03]}  Nbd6 {[%clk 0:01:24]} 30. Ba3 {[%clk 0:01:03]}  Nf5 {[%clk 0:01:22]} 31. c4 {[%clk 0:00:54]}  h5 {[%clk 0:01:20]} 32. a5 {[%clk 0:00:47]}  a6 {[%clk 0:01:19]} 33. Re1 {[%clk 0:00:37]}  Kf7 {[%clk 0:01:11]} 34. Bc1 {[%clk 0:00:11]}  Nfd6 {[%clk 0:01:03]} 35. Nd2 {[%clk 0:00:02]}  Qf5 {[%clk 0:01:02]} 0-1


[Site "https://www.chess.com"]

[Event "Titled Tuesday Blitz March 22 Early 2022"]
[White "Altman, Joshua"]
[Black "Timofeev, Artyom"]
[WhiteFideId "426210"]
[BlackFideId "4140419"]
[WhiteElo "1945"]
[BlackElo "2594"]
[Result "0-1"]
[Round "02"]
[TimeControl "180+1"]
[Date "2022.03.22"]
[WhiteClock "0:00:41"]
[BlackClock "0:01:04"]

1. d4 {[%clk 0:03:00]}  d5 {[%clk 0:02:58]} 2. c4 {[%clk 0:02:58]}  e6 {[%clk 0:02:56]} 3. Nc3 {[%clk 0:02:58]}  h6 {[%clk 0:02:54]} 4. cxd5 {[%clk 0:02:58]}  exd5 {[%clk 0:02:54]} 5. Nf3 {[%clk 0:02:59]}  Nf6 {[%clk 0:02:54]} 6. Qc2 {[%clk 0:02:59]}  c5 {[%clk 0:02:46]} 7. e3 {[%clk 0:02:53]}  Nc6 {[%clk 0:02:46]} 8. Bb5 {[%clk 0:02:51]}  cxd4 {[%clk 0:02:29]} 9. Nxd4 {[%clk 0:02:50]}  Bd7 {[%clk 0:02:29]} 10. O-O {[%clk 0:02:42]}  Be7 {[%clk 0:02:15]} 11. Nf5 {[%clk 0:02:35]}  O-O {[%clk 0:02:12]} 12. Nxe7+ {[%clk 0:02:29]}  Qxe7 {[%clk 0:02:10]} 13. b3 {[%clk 0:02:25]}  Rac8 {[%clk 0:01:57]} 14. Bxc6 {[%clk 0:02:16]}  bxc6 {[%clk 0:01:54]} 15. Bb2 {[%clk 0:02:11]}  c5 {[%clk 0:01:54]} 16. Rfd1 {[%clk 0:02:08]}  Bc6 {[%clk 0:01:46]} 17. Rac1 {[%clk 0:02:04]}  Rfe8 {[%clk 0:01:43]} 18. Ne2 {[%clk 0:01:59]}  d4 {[%clk 0:01:36]} 19. Ng3 {[%clk 0:01:22]}  dxe3 {[%clk 0:01:22]} 20. Nf5 {[%clk 0:01:14]}  Qe4 {[%clk 0:01:15]} 21. Qxe4 {[%clk 0:01:12]}  exf2+ {[%clk 0:01:15]} 22. Kxf2 {[%clk 0:01:01]}  Nxe4+ {[%clk 0:01:12]} 23. Kg1 {[%clk 0:01:02]}  f6 {[%clk 0:01:09]} 24. Nd6 {[%clk 0:00:53]}  Nxd6 {[%clk 0:01:09]} 25. Rxd6 {[%clk 0:00:54]}  Re2 {[%clk 0:01:08]} 26. Rxc5 {[%clk 0:00:48]}  Rxg2+ {[%clk 0:01:08]} 27. Kf1 {[%clk 0:00:48]}  Rxb2 {[%clk 0:01:07]} 28. Rdxc6 {[%clk 0:00:47]}  Rxc6 {[%clk 0:01:08]} 29. Rxc6 {[%clk 0:00:48]}  Rxa2 {[%clk 0:01:07]} 30. Rc8+ {[%clk 0:00:46]}  Kh7 {[%clk 0:01:07]} 31. Rc7 {[%clk 0:00:47]}  Rxh2 {[%clk 0:01:06]} 32. Rxa7 {[%clk 0:00:48]}  Rb2 {[%clk 0:01:06]} 33. Rb7 {[%clk 0:00:48]}  h5 {[%clk 0:01:07]} 34. b4 {[%clk 0:00:48]}  Kh6 {[%clk 0:01:04]} 35. b5 {[%clk 0:00:49]}  g5 {[%clk 0:01:05]} 36. b6 {[%clk 0:00:48]}  Kg6 {[%clk 0:01:05]} 37. Rb8 {[%clk 0:00:48]}  Kf5 {[%clk 0:01:05]} 38. b7 {[%clk 0:00:48]}  h4 {[%clk 0:01:05]} 39. Kg1 {[%clk 0:00:48]}  Kg4 {[%clk 0:01:05]} 40. Kh1 {[%clk 0:00:45]}  f5 {[%clk 0:01:05]} 41. Kg1 {[%clk 0:00:42]}  Kg3 {[%clk 0:01:05]} 42. Kf1 {[%clk 0:00:42]}  g4 {[%clk 0:01:05]} 43. Rf8 {[%clk 0:00:41]}  Rb1+ {[%clk 0:01:04]} 44. Ke2 {[%clk 0:00:40]}  Rxb7 {[%clk 0:01:04]} 45. Rxf5 {[%clk 0:00:41]}  h3 {[%clk 0:01:04]} 0-1


[Site "https://www.chess.com"]

[Event "Titled Tuesday Blitz March 22 Early 2022"]
[White "Araujo Filho, Luiz Antonio Coel"]
[Black "Kovanova, Baira"]
[WhiteFideId "2130661"]
[BlackFideId "4164083"]
[WhiteElo "2217"]
[BlackElo "2190"]
[Result "0-1"]
[Round "02"]
[TimeControl "180+1"]
[Date "2022.03.22"]
[WhiteClock "0:00:03"]
[BlackClock "0:00:17"]

1. d4 {[%clk 0:03:00]}  Nf6 {[%clk 0:02:58]} 2. Nf3 {[%clk 0:02:58]}  e6 {[%clk 0:02:58]} 3. e3 {[%clk 0:02:58]}  b6 {[%clk 0:02:53]} 4. Bd3 {[%clk 0:02:57]}  Bb7 {[%clk 0:02:53]} 5. Nbd2 {[%clk 0:02:56]}  d5 {[%clk 0:02:52]} 6. Qe2 {[%clk 0:02:55]}  c5 {[%clk 0:02:52]} 7. c3 {[%clk 0:02:55]}  Bd6 {[%clk 0:02:51]} 8. e4 {[%clk 0:02:55]}  dxe4 {[%clk 0:02:51]} 9. Nxe4 {[%clk 0:02:55]}  Nxe4 {[%clk 0:02:38]} 10. Bxe4 {[%clk 0:02:55]}  Qc7 {[%clk 0:02:34]} 11. O-O {[%clk 0:02:51]}  Nd7 {[%clk 0:02:34]} 12. Bg5 {[%clk 0:02:43]}  h6 {[%clk 0:02:33]} 13. Bh4 {[%clk 0:02:43]}  Bxe4 {[%clk 0:02:27]} 14. Qxe4 {[%clk 0:02:42]}  O-O {[%clk 0:02:26]} 15. dxc5 {[%clk 0:02:02]}  Nxc5 {[%clk 0:02:26]} 16. Qe2 {[%clk 0:02:02]}  e5 {[%clk 0:02:22]} 17. Rad1 {[%clk 0:01:53]}  e4 {[%clk 0:02:21]} 18. Nd4 {[%clk 0:01:50]}  Bxh2+ {[%clk 0:02:21]} 19. Kh1 {[%clk 0:01:51]}  Bf4 {[%clk 0:01:49]} 20. Qg4 {[%clk 0:01:28]}  Qe5 {[%clk 0:01:28]} 21. Nc6 {[%clk 0:00:57]}  f5 {[%clk 0:01:25]} 22. Nxe5 {[%clk 0:00:39]}  fxg4 {[%clk 0:01:25]} 23. Nxg4 {[%clk 0:00:40]}  Nd3 {[%clk 0:01:20]} 24. f3 {[%clk 0:00:26]}  Nxb2 {[%clk 0:01:09]} 25. Rb1 {[%clk 0:00:25]}  Nc4 {[%clk 0:00:55]} 26. fxe4 {[%clk 0:00:05]}  Nd2 {[%clk 0:00:54]} 27. Rbd1 {[%clk 0:00:04]}  Nxf1 {[%clk 0:00:50]} 28. Rxf1 {[%clk 0:00:05]}  h5 {[%clk 0:00:49]} 29. Nh2 {[%clk 0:00:04]}  Rae8 {[%clk 0:00:44]} 30. Nf3 {[%clk 0:00:03]}  Rxe4 {[%clk 0:00:43]} 31. Rd1 {[%clk 0:00:03]}  Be5 {[%clk 0:00:36]} 32. Rd7 {[%clk 0:00:03]}  Rxf3 {[%clk 0:00:36]} 33. gxf3 {[%clk 0:00:03]}  Rxh4+ {[%clk 0:00:36]} 34. Kg2 {[%clk 0:00:04]}  Bxc3 {[%clk 0:00:36]} 35. Rxa7 {[%clk 0:00:03]}  Rb4 {[%clk 0:00:33]} 36. a3 {[%clk 0:00:03]}  Rb2+ {[%clk 0:00:33]} 37. Kh3 {[%clk 0:00:03]}  Be5 {[%clk 0:00:33]} 38. Kh4 {[%clk 0:00:03]}  Rh2+ {[%clk 0:00:29]} 39. Kg5 {[%clk 0:00:03]}  Kh7 {[%clk 0:00:29]} 40. f4 {[%clk 0:00:02]}  Bf6+ {[%clk 0:00:29]} 41. Kf5 {[%clk 0:00:03]}  Rg2 {[%clk 0:00:28]} 42. Rb7 {[%clk 0:00:03]}  h4 {[%clk 0:00:28]} 43. Rxb6 {[%clk 0:00:03]}  Ra2 {[%clk 0:00:28]} 44. Rb3 {[%clk 0:00:03]}  Be7 {[%clk 0:00:23]} 45. Rh3 {[%clk 0:00:04]}  Rxa3 {[%clk 0:00:22]} 46. Rh1 {[%clk 0:00:02]}  Bf6 {[%clk 0:00:20]} 47. Kg4 {[%clk 0:00:02]}  Rg3+ {[%clk 0:00:19]} 48. Kf5 {[%clk 0:00:02]}  Kh6 {[%clk 0:00:19]} 49. Rh2 {[%clk 0:00:03]}  Kh5 {[%clk 0:00:19]} 50. Rh1 {[%clk 0:00:03]}  h3 {[%clk 0:00:19]} 51. Rh2 {[%clk 0:00:04]}  Kh4 {[%clk 0:00:19]} 52. Rh1 {[%clk 0:00:04]}  Rg2 {[%clk 0:00:19]} 53. Ke4 {[%clk 0:00:03]}  h2 {[%clk 0:00:18]} 54. Kf3 {[%clk 0:00:04]}  Kh3 {[%clk 0:00:18]} 55. f5 {[%clk 0:00:03]}  Rg1 {[%clk 0:00:17]} 0-1


[Site "https://www.chess.com"]

[Event "Titled Tuesday Blitz March 22 Early 2022"]
[White "Ardila, Oscar Humberto"]
[Black "Hirneise, Jens"]
[WhiteFideId "4404742"]
[BlackFideId "24614734"]
[WhiteElo "1966"]
[BlackElo "2359"]
[Result "1-0"]
[Round "02"]
[TimeControl "180+1"]
[Date "2022.03.22"]
[WhiteClock "0:00:05"]
[BlackClock "0:00:13"]

1. d4 {[%clk 0:02:59]}  f5 {[%clk 0:02:56]} 2. c4 {[%clk 0:02:59]}  Nf6 {[%clk 0:02:57]} 3. Nc3 {[%clk 0:03:00]}  e6 {[%clk 0:02:57]} 4. g3 {[%clk 0:03:00]}  Be7 {[%clk 0:02:56]} 5. Bg2 {[%clk 0:03:00]}  d5 {[%clk 0:02:55]} 6. cxd5 {[%clk 0:02:58]}  exd5 {[%clk 0:02:55]} 7. Nf3 {[%clk 0:02:59]}  c6 {[%clk 0:02:56]} 8. O-O {[%clk 0:02:59]}  O-O {[%clk 0:02:57]} 9. Ne5 {[%clk 0:02:58]}  Be6 {[%clk 0:02:56]} 10. Qb3 {[%clk 0:02:55]}  Qb6 {[%clk 0:02:51]} 11. Qd1 {[%clk 0:02:36]}  Nbd7 {[%clk 0:02:49]} 12. Bf4 {[%clk 0:02:30]}  Rae8 {[%clk 0:02:48]} 13. e3 {[%clk 0:02:30]}  Ne4 {[%clk 0:02:46]} 14. Nxd7 {[%clk 0:02:19]}  Bxd7 {[%clk 0:02:47]} 15. Qc2 {[%clk 0:02:18]}  Bf6 {[%clk 0:02:39]} 16. h4 {[%clk 0:02:16]}  Rf7 {[%clk 0:02:36]} 17. a3 {[%clk 0:02:08]}  h6 {[%clk 0:02:29]} 18. h5 {[%clk 0:02:05]}  Rfe7 {[%clk 0:02:28]} 19. Na4 {[%clk 0:02:02]}  Qd8 {[%clk 0:02:21]} 20. Nc5 {[%clk 0:02:00]}  Bc8 {[%clk 0:02:20]} 21. Rac1 {[%clk 0:01:55]}  Rf8 {[%clk 0:02:19]} 22. b4 {[%clk 0:01:35]}  Qe8 {[%clk 0:02:09]} 23. Nxe4 {[%clk 0:01:34]}  fxe4 {[%clk 0:02:05]} 24. Bd6 {[%clk 0:01:34]}  Qxh5 {[%clk 0:02:04]} 25. Bxe7 {[%clk 0:01:34]}  Bxe7 {[%clk 0:02:04]} 26. b5 {[%clk 0:01:35]}  Bd7 {[%clk 0:02:03]} 27. bxc6 {[%clk 0:01:34]}  Bxc6 {[%clk 0:01:51]} 28. Qd1 {[%clk 0:01:26]}  Qf5 {[%clk 0:01:39]} 29. Kh2 {[%clk 0:01:20]}  a6 {[%clk 0:01:33]} 30. Bh3 {[%clk 0:01:20]}  Qg6 {[%clk 0:01:27]} 31. Rc3 {[%clk 0:00:54]}  h5 {[%clk 0:01:26]} 32. Kg1 {[%clk 0:00:29]}  Qh6 {[%clk 0:01:15]} 33. Kg2 {[%clk 0:00:18]}  Rf3 {[%clk 0:01:08]} 34. Rxc6 {[%clk 0:00:14]}  bxc6 {[%clk 0:01:04]} 35. Qb1 {[%clk 0:00:14]}  h4 {[%clk 0:01:01]} 36. Qb8+ {[%clk 0:00:14]}  Rf8 {[%clk 0:00:47]} 37. Qe5 {[%clk 0:00:14]}  Bxa3 {[%clk 0:00:32]} 38. Be6+ {[%clk 0:00:13]}  Kh8 {[%clk 0:00:31]} 39. Rh1 {[%clk 0:00:13]}  Be7 {[%clk 0:00:28]} 40. Bf5 {[%clk 0:00:13]}  Bf6 {[%clk 0:00:28]} 41. Qe6 {[%clk 0:00:09]}  g6 {[%clk 0:00:26]} 42. Bg4 {[%clk 0:00:09]}  Kg7 {[%clk 0:00:23]} 43. Qd7+ {[%clk 0:00:08]}  Rf7 {[%clk 0:00:23]} 44. Qxc6 {[%clk 0:00:09]}  Qh8 {[%clk 0:00:17]} 45. Qxd5 {[%clk 0:00:09]}  Qf8 {[%clk 0:00:17]} 46. Qxe4 {[%clk 0:00:07]}  Be7 {[%clk 0:00:16]} 47. Bf3 {[%clk 0:00:08]}  Bg5 {[%clk 0:00:14]} 48. Qg4 {[%clk 0:00:07]}  Bf6 {[%clk 0:00:14]} 49. gxh4 {[%clk 0:00:06]}  Qh8 {[%clk 0:00:12]} 50. h5 {[%clk 0:00:06]}  g5 {[%clk 0:00:12]} 51. Be4 {[%clk 0:00:06]}  Kh6 {[%clk 0:00:11]} 52. Qf5 {[%clk 0:00:05]}  Qg7 {[%clk 0:00:11]} 53. Qg6+ {[%clk 0:00:04]}  Qxg6 {[%clk 0:00:11]} 54. hxg6+ {[%clk 0:00:05]}  Kg7 {[%clk 0:00:12]} 55. gxf7 {[%clk 0:00:05]}  Kxf7 {[%clk 0:00:13]} 56. Rh7+ {[%clk 0:00:05]} 1-0


[Site "https://www.chess.com"]

[Event "Titled Tuesday Blitz March 22 Early 2022"]
[White "Aydin, Gulenay"]
[Black "Vine, Elzbieta"]
[WhiteFideId "34557431"]
[BlackFideId "1119320"]
[WhiteElo "1429"]
[BlackElo "1829"]
[Result "1-0"]
[Round "02"]
[TimeControl "180+1"]
[Date "2022.03.22"]
[WhiteClock "0:01:00"]
[BlackClock "0:00:26"]

1. e4 {[%clk 0:03:00]}  c5 {[%clk 0:02:57]} 2. Nf3 {[%clk 0:03:01]}  d6 {[%clk 0:02:55]} 3. d4 {[%clk 0:03:00]}  cxd4 {[%clk 0:02:55]} 4. Nxd4 {[%clk 0:03:01]}  Nf6 {[%clk 0:02:53]} 5. Nc3 {[%clk 0:03:01]}  a6 {[%clk 0:02:53]} 6. f3 {[%clk 0:03:02]}  Nc6 {[%clk 0:02:37]} 7. Be3 {[%clk 0:03:02]}  e5 {[%clk 0:02:26]} 8. Nb3 {[%clk 0:02:55]}  Be6 {[%clk 0:02:24]} 9. Qd2 {[%clk 0:02:56]}  d5 {[%clk 0:02:18]} 10. exd5 {[%clk 0:02:56]}  Nxd5 {[%clk 0:02:17]} 11. Nxd5 {[%clk 0:02:55]}  Bxd5 {[%clk 0:02:14]} 12. O-O-O {[%clk 0:02:52]}  Bxb3 {[%clk 0:01:59]} 13. Qxd8+ {[%clk 0:02:52]}  Rxd8 {[%clk 0:01:58]} 14. Rxd8+ {[%clk 0:02:52]}  Nxd8 {[%clk 0:01:56]} 15. axb3 {[%clk 0:02:49]}  Be7 {[%clk 0:01:48]} 16. Bc4 {[%clk 0:02:46]}  O-O {[%clk 0:01:47]} 17. Re1 {[%clk 0:02:45]}  Nc6 {[%clk 0:01:46]} 18. Bb6 {[%clk 0:02:40]}  Bg5+ {[%clk 0:01:39]} 19. Kb1 {[%clk 0:02:39]}  Bd8 {[%clk 0:01:30]} 20. Bc5 {[%clk 0:02:32]}  Re8 {[%clk 0:01:28]} 21. Bd5 {[%clk 0:02:24]}  Bc7 {[%clk 0:01:22]} 22. c4 {[%clk 0:02:17]}  g6 {[%clk 0:01:18]} 23. b4 {[%clk 0:02:04]}  Kg7 {[%clk 0:01:14]} 24. b5 {[%clk 0:01:40]}  axb5 {[%clk 0:01:13]} 25. cxb5 {[%clk 0:01:41]}  Nd8 {[%clk 0:01:08]} 26. b6 {[%clk 0:01:25]}  Bb8 {[%clk 0:01:06]} 27. Re3 {[%clk 0:01:21]}  f5 {[%clk 0:01:03]} 28. Ra3 {[%clk 0:01:19]}  e4 {[%clk 0:01:01]} 29. fxe4 {[%clk 0:01:17]}  fxe4 {[%clk 0:01:00]} 30. h3 {[%clk 0:01:15]}  Bf4 {[%clk 0:00:56]} 31. Ra4 {[%clk 0:01:06]}  Re5 {[%clk 0:00:33]} 32. Bd4 {[%clk 0:01:04]}  e3 {[%clk 0:00:30]} 33. Bxe5+ {[%clk 0:01:00]}  Bxe5 {[%clk 0:00:29]} 34. Re4 {[%clk 0:01:01]}  Bf4 {[%clk 0:00:26]} 35. Rxf4 {[%clk 0:01:00]}  e2 {[%clk 0:00:26]} 36. Re4 {[%clk 0:01:00]} 1-0


[Site "https://www.chess.com"]

[Event "Titled Tuesday Blitz March 22 Early 2022"]
[White "Babazada, Khazar"]
[Black "Bodnaruk, Anastasia"]
[WhiteFideId "13413554"]
[BlackFideId "4181751"]
[WhiteElo "2418"]
[BlackElo "2393"]
[Result "1-0"]
[Round "02"]
[TimeControl "180+1"]
[Date "2022.03.22"]
[WhiteClock "0:01:11"]
[BlackClock "0:00:02"]

1. Nf3 {[%clk 0:03:00]}  Nf6 {[%clk 0:02:58]} 2. g3 {[%clk 0:03:01]}  g6 {[%clk 0:02:57]} 3. Bg2 {[%clk 0:03:02]}  Bg7 {[%clk 0:02:58]} 4. O-O {[%clk 0:03:01]}  O-O {[%clk 0:02:59]} 5. b3 {[%clk 0:03:01]}  c5 {[%clk 0:02:56]} 6. Bb2 {[%clk 0:03:01]}  Nc6 {[%clk 0:02:56]} 7. d3 {[%clk 0:03:01]}  d5 {[%clk 0:02:55]} 8. Nbd2 {[%clk 0:03:02]}  Re8 {[%clk 0:02:45]} 9. Qc1 {[%clk 0:02:56]}  e5 {[%clk 0:02:43]} 10. e4 {[%clk 0:02:56]}  d4 {[%clk 0:02:38]} 11. a4 {[%clk 0:02:56]}  Nh5 {[%clk 0:02:29]} 12. Nc4 {[%clk 0:02:56]}  f5 {[%clk 0:02:27]} 13. exf5 {[%clk 0:02:53]}  gxf5 {[%clk 0:02:27]} 14. Re1 {[%clk 0:02:51]}  f4 {[%clk 0:01:53]} 15. Qd1 {[%clk 0:02:47]}  Bg4 {[%clk 0:01:44]} 16. h3 {[%clk 0:02:46]}  Bxf3 {[%clk 0:01:31]} 17. Qxf3 {[%clk 0:02:47]}  Nf6 {[%clk 0:01:31]} 18. gxf4 {[%clk 0:02:47]}  exf4 {[%clk 0:01:22]} 19. Qxf4 {[%clk 0:02:48]}  Qd7 {[%clk 0:01:20]} 20. Nd6 {[%clk 0:02:37]}  Rf8 {[%clk 0:01:19]} 21. Nxb7 {[%clk 0:01:50]}  Qxb7 {[%clk 0:01:09]} 22. Re6 {[%clk 0:01:50]}  Rac8 {[%clk 0:01:05]} 23. Qf3 {[%clk 0:01:50]}  Nd7 {[%clk 0:00:28]} 24. Qd5 {[%clk 0:01:49]}  Nb6 {[%clk 0:00:29]} 25. Qxc5 {[%clk 0:01:48]}  Nd8 {[%clk 0:00:20]} 26. Qxf8+ {[%clk 0:01:32]}  Bxf8 {[%clk 0:00:20]} 27. Bxb7 {[%clk 0:01:33]}  Nxb7 {[%clk 0:00:21]} 28. Bxd4 {[%clk 0:01:31]}  Rxc2 {[%clk 0:00:19]} 29. a5 {[%clk 0:01:31]}  Nd5 {[%clk 0:00:18]} 30. a6 {[%clk 0:01:30]}  Nc5 {[%clk 0:00:15]} 31. Rc6 {[%clk 0:01:24]}  Nf4 {[%clk 0:00:12]} 32. Be3 {[%clk 0:01:25]}  Nfxd3 {[%clk 0:00:11]} 33. Rd1 {[%clk 0:01:23]}  Nb4 {[%clk 0:00:10]} 34. Rc8 {[%clk 0:01:21]}  Nbxa6 {[%clk 0:00:10]} 35. Rdd8 {[%clk 0:01:20]}  Rc1+ {[%clk 0:00:07]} 36. Kg2 {[%clk 0:01:20]}  Re1 {[%clk 0:00:02]} 37. Rxf8+ {[%clk 0:01:20]}  Kg7 {[%clk 0:00:03]} 38. Rf5 {[%clk 0:01:15]}  Nxb3 {[%clk 0:00:02]} 39. Ra8 {[%clk 0:01:13]}  Nb4 {[%clk 0:00:02]} 40. Rxa7+ {[%clk 0:01:13]}  Kg6 {[%clk 0:00:02]} 41. Raf7 {[%clk 0:01:11]} 1-0


[Site "https://www.chess.com"]